Workbook

Sheet 砂時計
I1: =TODAY() -> 2022-05-20
I3: 開始時間
I6: 現時間
I9: 経過時間
I10: =IF(OR(I4="",I7="",I7<I4),"",I7-I4) -> 
F34: Enterで強制中止

Sheet 作業用 (hidden)
A1: 時計向き | C1: 上 | G1: 0.5 秒後 | H1: 割合 | I1: GRP | J1: 上 | M1: 下
A2: 下 | C2: Left | D2: Top | E2: Height | J2: 平準値 | K2: 調整率 | L2: 移動値
C3: 0 | D3: 100 | E3: 124.7 | G3: =MAX(G4:G363) -> 355 | H3: 0.3 | J3: =SUM(J4:J363) -> 124.7 | L3: =SUM(L4:L363) -> 124.7 | M3: =SUM(M4:M363) -> 116.25 | P3: GRP | T3: 合計
G4: 1 | H4: 1 | I4: =IF(H4=1,I3+1,I3) -> 1 | J4: =$E$3/$G$3 -> 0.3512676056 | K4: =HLOOKUP(I4,$P$4:$S$6,3,FALSE) -> 0.9 | L4: =J4*K4 -> 0.3161408451 | M4: =($D$7-$D$23)/$G$3 -> 0.3274647887 | N4: ○ | P4: 1 | Q4: 2 | R4: 3 | S4: 4
C5: 下 | G5: 2 | H5: =IF(H4=ROUNDUP($G$3*$H$3,0),1,H4+1) -> 2 | I5: =IF(H5=1,I4+1,I4) -> 1 | J5: =$E$3/$G$3 -> 0.3512676056 | K5: =HLOOKUP(I5,$P$4:$S$6,3,FALSE) -> 0.9 | L5: =J5*K5 -> 0.3161408451 | M5: =($D$7-$D$23)/$G$3 -> 0.3274647887 | N5: ○ | O5: 件数 | P5: =COUNTIF($I:$I,P4) -> 107 | Q5: =COUNTIF($I:$I,Q4) -> 107 | R5: 107 | S5: 34 | T5: =SUM(P5:S5) -> 355
C6: Left | D6: Top | E6: Height | G6: 3 | H6: =IF(H5=ROUNDUP($G$3*$H$3,0),1,H5+1) -> 3 | I6: 1 | J6: 0.3512676056 | K6: 0.9 | L6: 0.3161408451 | M6: 0.3274647887 | N6: ○ | O6: 調整率 | P6: 0.9 | Q6: 0.95 | R6: 1.05 | S6: =S7/O7 -> 1.314705882
C7: 0 | D7: 384.75 | E7: 52.5 | G7: 4 | H7: 4 | I7: 1 | J7: 0.3512676056 | K7: 0.9 | L7: 0.3161408451 | M7: 0.3274647887 | N7: ○ | O7: =J4 -> 0.3512676056 | P7: =$O$7*P6 -> 0.3161408451 | Q7: =$O$7*Q6 -> 0.3337042254 | R7: 0.3688309859 | S7: =S8/S5 -> 0.4618135874
G8: 5 | H8: 5 | I8: 1 | J8: 0.3512676056 | K8: 0.9 | L8: 0.3161408451 | M8: 0.3274647887 | N8: ○ | O8: =J3 -> 124.7 | P8: =SUMIF($I$4:$I$363,P4,$L$4:$L$363) -> 33.82707042 | Q8: =SUMIF($I$4:$I$363,Q4,$L$4:$L$363) -> 35.70635211 | R8: =SUMIF($I$4:$I$363,R4,$L$4:$L$363) -> 39.46491549 | S8: =O8-SUM(P8:R8) -> 15.70166197 | T8: =SUM(P8:S8) -> 124.7
C9: 落 | G9: 6 | H9: 6 | I9: 1 | J9: 0.3512676056 | K9: 0.9 | L9: 0.3161408451 | M9: 0.3274647887 | N9: ○
C10: Left | D10: Top | E10: Height | G10: 7 | H10: 7 | I10: 1 | J10: 0.3512676056 | K10: 0.9 | L10: 0.3161408451 | M10: 0.3274647887 | N10: ○
C11: 182.25 | D11: 225 | E11: 161.57 | G11: 8 | H11: 8 | I11: 1 | J11: 0.3512676056 | K11: 0.9 | L11: 0.3161408451 | M11: 0.3274647887 | N11: ○
G12: 9 | H12: 9 | I12: 1 | J12: 0.3512676056 | K12: 0.9 | L12: 0.3161408451 | M12: 0.3274647887 | N12: ○
G13: 10 | H13: 10 | I13: 1 | J13: 0.3512676056 | K13: 0.9 | L13: 0.3161408451 | M13: 0.3274647887 | N13: ○
G14: 11 | H14: 11 | I14: 1 | J14: 0.3512676056 | K14: 0.9 | L14: 0.3161408451 | M14: 0.3274647887 | N14: ○
G15: 12 | H15: 12 | I15: 1 | J15: 0.3512676056 | K15: 0.9 | L15: 0.3161408451 | M15: 0.3274647887 | N15: ○
C16: 初期化用 | G16: 13 | H16: 13 | I16: 1 | J16: 0.3512676056 | K16: 0.9 | L16: 0.3161408451 | M16: 0.3274647887 | N16: ○
C17: 上 | G17: 14 | H17: 14 | I17: 1 | J17: 0.3512676056 | K17: 0.9 | L17: 0.3161408451 | M17: 0.3274647887 | N17: ○
C18: Left | D18: Top | E18: Height | G18: 15 | H18: 15 | I18: 1 | J18: 0.3512676056 | K18: 0.9 | L18: 0.3161408451 | M18: 0.3274647887 | N18: ○
C19: 0 | D19: 224.7 | E19: 0 | G19: 16 | H19: 16 | I19: 1 | J19: 0.3512676056 | K19: 0.9 | L19: 0.3161408451 | M19: 0.3274647887 | N19: ○
G20: 17 | H20: 17 | I20: 1 | J20: 0.3512676056 | K20: 0.9 | L20: 0.3161408451 | M20: 0.3274647887 | N20: ○
C21: 下 | G21: 18 | H21: 18 | I21: 1 | J21: 0.3512676056 | K21: 0.9 | L21: 0.3161408451 | M21: 0.3274647887 | N21: ○
C22: Left | D22: Top | E22: Height | G22: 19 | H22: 19 | I22: 1 | J22: 0.3512676056 | K22: 0.9 | L22: 0.3161408451 | M22: 0.3274647887 | N22: ○
C23: 0 | D23: 268.5 | E23: 168.7 | G23: 20 | H23: 20 | I23: 1 | J23: 0.3512676056 | K23: 0.9 | L23: 0.3161408451 | M23: 0.3274647887 | N23: ○
G24: 21 | H24: 21 | I24: 1 | J24: 0.3512676056 | K24: 0.9 | L24: 0.3161408451 | M24: 0.3274647887 | N24: ○
C25: 落 | G25: 22 | H25: 22 | I25: 1 | J25: 0.3512676056 | K25: 0.9 | L25: 0.3161408451 | M25: 0.3274647887 | N25: ○
C26: Left | D26: Top | E26: Height | G26: 23 | H26: 23 | I26: 1 | J26: 0.3512676056 | K26: 0.9 | L26: 0.3161408451 | M26: 0.3274647887 | N26: ○
C27: 182.25 | D27: 315 | E27: 75 | G27: 24 | H27: 24 | I27: 1 | J27: 0.3512676056 | K27: 0.9 | L27: 0.3161408451 | M27: 0.3274647887 | N27: ○
G28: 25 | H28: 25 | I28: 1 | J28: 0.3512676056 | K28: 0.9 | L28: 0.3161408451 | M28: 0.3274647887 | N28: ○
G29: 26 | H29: 26 | I29: 1 | J29: 0.3512676056 | K29: 0.9 | L29: 0.3161408451 | M29: 0.3274647887 | N29: ○
G30: 27 | H30: 27 | I30: 1 | J30: 0.3512676056 | K30: 0.9 | L30: 0.3161408451 | M30: 0.3274647887 | N30: ○
G31: 28 | H31: 28 | I31: 1 | J31: 0.3512676056 | K31: 0.9 | L31: 0.3161408451 | M31: 0.3274647887 | N31: ○
G32: 29 | H32: 29 | I32: 1 | J32: 0.3512676056 | K32: 0.9 | L32: 0.3161408451 | M32: 0.3274647887 | N32: ○
G33: 30 | H33: 30 | I33: 1 | J33: 0.3512676056 | K33: 0.9 | L33: 0.3161408451 | M33: 0.3274647887 | N33: ○
G34: 31 | H34: 31 | I34: 1 | J34: 0.3512676056 | K34: 0.9 | L34: 0.3161408451 | M34: 0.3274647887 | N34: ○
G35: 32 | H35: 32 | I35: 1 | J35: 0.3512676056 | K35: 0.9 | L35: 0.3161408451 | M35: 0.3274647887 | N35: ○
G36: 33 | H36: 33 | I36: 1 | J36: 0.3512676056 | K36: 0.9 | L36: 0.3161408451 | M36: 0.3274647887 | N36: ○
G37: 34 | H37: 34 | I37: 1 | J37: 0.3512676056 | K37: 0.9 | L37: 0.3161408451 | M37: 0.3274647887 | N37: ○
G38: 35 | H38: 35 | I38: 1 | J38: 0.3512676056 | K38: 0.9 | L38: 0.3161408451 | M38: 0.3274647887 | N38: ○
G39: 36 | H39: 36 | I39: 1 | J39: 0.3512676056 | K39: 0.9 | L39: 0.3161408451 | M39: 0.3274647887 | N39: ○
G40: 37 | H40: 37 | I40: 1 | J40: 0.3512676056 | K40: 0.9 | L40: 0.3161408451 | M40: 0.3274647887 | N40: ○
G41: 38 | H41: 38 | I41: 1 | J41: 0.3512676056 | K41: 0.9 | L41: 0.3161408451 | M41: 0.3274647887 | N41: ○
G42: 39 | H42: 39 | I42: 1 | J42: 0.3512676056 | K42: 0.9 | L42: 0.3161408451 | M42: 0.3274647887 | N42: ○
G43: 40 | H43: 40 | I43: 1 | J43: 0.3512676056 | K43: 0.9 | L43: 0.3161408451 | M43: 0.3274647887 | N43: ○
G44: 41 | H44: 41 | I44: 1 | J44: 0.3512676056 | K44: 0.9 | L44: 0.3161408451 | M44: 0.3274647887 | N44: ○
G45: 42 | H45: 42 | I45: 1 | J45: 0.3512676056 | K45: 0.9 | L45: 0.3161408451 | M45: 0.3274647887 | N45: ○
G46: 43 | H46: 43 | I46: 1 | J46: 0.3512676056 | K46: 0.9 | L46: 0.3161408451 | M46: 0.3274647887 | N46: ○
G47: 44 | H47: 44 | I47: 1 | J47: 0.3512676056 | K47: 0.9 | L47: 0.3161408451 | M47: 0.3274647887 | N47: ○
G48: 45 | H48: 45 | I48: 1 | J48: 0.3512676056 | K48: 0.9 | L48: 0.3161408451 | M48: 0.3274647887 | N48: ○
G49: 46 | H49: 46 | I49: 1 | J49: 0.3512676056 | K49: 0.9 | L49: 0.3161408451 | M49: 0.3274647887 | N49: ○
G50: 47 | H50: 47 | I50: 1 | J50: 0.3512676056 | K50: 0.9 | L50: 0.3161408451 | M50: 0.3274647887 | N50: ○
G51: 48 | H51: 48 | I51: 1 | J51: 0.3512676056 | K51: 0.9 | L51: 0.3161408451 | M51: 0.3274647887 | N51: ○
G52: 49 | H52: 49 | I52: 1 | J52: 0.3512676056 | K52: 0.9 | L52: 0.3161408451 | M52: 0.3274647887 | N52: ○
G53: 50 | H53: 50 | I53: 1 | J53: 0.3512676056 | K53: 0.9 | L53: 0.3161408451 | M53: 0.3274647887 | N53: ○
G54: 51 | H54: 51 | I54: 1 | J54: 0.3512676056 | K54: 0.9 | L54: 0.3161408451 | M54: 0.3274647887 | N54: ○
G55: 52 | H55: 52 | I55: 1 | J55: 0.3512676056 | K55: 0.9 | L55: 0.3161408451 | M55: 0.3274647887 | N55: ○
G56: 53 | H56: 53 | I56: 1 | J56: 0.3512676056 | K56: 0.9 | L56: 0.3161408451 | M56: 0.3274647887 | N56: ○
G57: 54 | H57: 54 | I57: 1 | J57: 0.3512676056 | K57: 0.9 | L57: 0.3161408451 | M57: 0.3274647887 | N57: ○
G58: 55 | H58: 55 | I58: 1 | J58: 0.3512676056 | K58: 0.9 | L58: 0.3161408451 | M58: 0.3274647887 | N58: ○
G59: 56 | H59: 56 | I59: 1 | J59: 0.3512676056 | K59: 0.9 | L59: 0.3161408451 | M59: 0.3274647887 | N59: ○
G60: 57 | H60: 57 | I60: 1 | J60: 0.3512676056 | K60: 0.9 | L60: 0.3161408451 | M60: 0.3274647887 | N60: ○
G61: 58 | H61: 58 | I61: 1 | J61: 0.3512676056 | K61: 0.9 | L61: 0.3161408451 | M61: 0.3274647887 | N61: ○
G62: 59 | H62: 59 | I62: 1 | J62: 0.3512676056 | K62: 0.9 | L62: 0.3161408451 | M62: 0.3274647887 | N62: ○
G63: 60 | H63: 60 | I63: 1 | J63: 0.3512676056 | K63: 0.9 | L63: 0.3161408451 | M63: 0.3274647887 | N63: ○
G64: 61 | H64: 61 | I64: 1 | J64: 0.3512676056 | K64: 0.9 | L64: 0.3161408451 | M64: 0.3274647887 | N64: ○
G65: 62 | H65: 62 | I65: 1 | J65: 0.3512676056 | K65: 0.9 | L65: 0.3161408451 | M65: 0.3274647887 | N65: ○
G66: 63 | H66: 63 | I66: 1 | J66: 0.3512676056 | K66: 0.9 | L66: 0.3161408451 | M66: 0.3274647887 | N66: ○
G67: 64 | H67: 64 | I67: 1 | J67: 0.3512676056 | K67: 0.9 | L67: 0.3161408451 | M67: 0.3274647887 | N67: ○
G68: 65 | H68: 65 | I68: 1 | J68: 0.3512676056 | K68: 0.9 | L68: 0.3161408451 | M68: 0.3274647887 | N68: ○
G69: 66 | H69: 66 | I69: =IF(H69=1,I68+1,I68) -> 1 | J69: =$E$3/$G$3 -> 0.3512676056 | K69: =HLOOKUP(I69,$P$4:$S$6,3,FALSE) -> 0.9 | L69: =J69*K69 -> 0.3161408451 | M69: =($D$7-$D$23)/$G$3 -> 0.3274647887 | N69: ○
G70: 67 | H70: =IF(H69=ROUNDUP($G$3*$H$3,0),1,H69+1) -> 67 | I70: 1 | J70: 0.3512676056 | K70: 0.9 | L70: 0.3161408451 | M70: 0.3274647887 | N70: ○
G71: 68 | H71: 68 | I71: 1 | J71: 0.3512676056 | K71: 0.9 | L71: 0.3161408451 | M71: 0.3274647887 | N71: ○
G72: 69 | H72: 69 | I72: 1 | J72: 0.3512676056 | K72: 0.9 | L72: 0.3161408451 | M72: 0.3274647887 | N72: ○
G73: 70 | H73: 70 | I73: 1 | J73: 0.3512676056 | K73: 0.9 | L73: 0.3161408451 | M73: 0.3274647887 | N73: ○
G74: 71 | H74: 71 | I74: 1 | J74: 0.3512676056 | K74: 0.9 | L74: 0.3161408451 | M74: 0.3274647887 | N74: ○
G75: 72 | H75: 72 | I75: 1 | J75: 0.3512676056 | K75: 0.9 | L75: 0.3161408451 | M75: 0.3274647887 | N75: ○
G76: 73 | H76: 73 | I76: 1 | J76: 0.3512676056 | K76: 0.9 | L76: 0.3161408451 | M76: 0.3274647887 | N76: ○
G77: 74 | H77: 74 | I77: 1 | J77: 0.3512676056 | K77: 0.9 | L77: 0.3161408451 | M77: 0.3274647887 | N77: ○
G78: 75 | H78: 75 | I78: 1 | J78: 0.3512676056 | K78: 0.9 | L78: 0.3161408451 | M78: 0.3274647887 | N78: ○
G79: 76 | H79: 76 | I79: 1 | J79: 0.3512676056 | K79: 0.9 | L79: 0.3161408451 | M79: 0.3274647887 | N79: ○
G80: 77 | H80: 77 | I80: 1 | J80: 0.3512676056 | K80: 0.9 | L80: 0.3161408451 | M80: 0.3274647887 | N80: ○
G81: 78 | H81: 78 | I81: 1 | J81: 0.3512676056 | K81: 0.9 | L81: 0.3161408451 | M81: 0.3274647887 | N81: ○
G82: 79 | H82: 79 | I82: 1 | J82: 0.3512676056 | K82: 0.9 | L82: 0.3161408451 | M82: 0.3274647887 | N82: ○
G83: 80 | H83: 80 | I83: 1 | J83: 0.3512676056 | K83: 0.9 | L83: 0.3161408451 | M83: 0.3274647887 | N83: ○
G84: 81 | H84: 81 | I84: 1 | J84: 0.3512676056 | K84: 0.9 | L84: 0.3161408451 | M84: 0.3274647887 | N84: ○
G85: 82 | H85: 82 | I85: 1 | J85: 0.3512676056 | K85: 0.9 | L85: 0.3161408451 | M85: 0.3274647887 | N85: ○
G86: 83 | H86: 83 | I86: 1 | J86: 0.3512676056 | K86: 0.9 | L86: 0.3161408451 | M86: 0.3274647887 | N86: ○
G87: 84 | H87: 84 | I87: 1 | J87: 0.3512676056 | K87: 0.9 | L87: 0.3161408451 | M87: 0.3274647887 | N87: ○
G88: 85 | H88: 85 | I88: 1 | J88: 0.3512676056 | K88: 0.9 | L88: 0.3161408451 | M88: 0.3274647887 | N88: ○
G89: 86 | H89: 86 | I89: 1 | J89: 0.3512676056 | K89: 0.9 | L89: 0.3161408451 | M89: 0.3274647887 | N89: ○
G90: 87 | H90: 87 | I90: 1 | J90: 0.3512676056 | K90: 0.9 | L90: 0.3161408451 | M90: 0.3274647887 | N90: ○
G91: 88 | H91: 88 | I91: 1 | J91: 0.3512676056 | K91: 0.9 | L91: 0.3161408451 | M91: 0.3274647887 | N91: ○
G92: 89 | H92: 89 | I92: 1 | J92: 0.3512676056 | K92: 0.9 | L92: 0.3161408451 | M92: 0.3274647887 | N92: ○
G93: 90 | H93: 90 | I93: 1 | J93: 0.3512676056 | K93: 0.9 | L93: 0.3161408451 | M93: 0.3274647887 | N93: ○
G94: 91 | H94: 91 | I94: 1 | J94: 0.3512676056 | K94: 0.9 | L94: 0.3161408451 | M94: 0.3274647887 | N94: ○
G95: 92 | H95: 92 | I95: 1 | J95: 0.3512676056 | K95: 0.9 | L95: 0.3161408451 | M95: 0.3274647887 | N95: ○
G96: 93 | H96: 93 | I96: 1 | J96: 0.3512676056 | K96: 0.9 | L96: 0.3161408451 | M96: 0.3274647887 | N96: ○
G97: 94 | H97: 94 | I97: 1 | J97: 0.3512676056 | K97: 0.9 | L97: 0.3161408451 | M97: 0.3274647887 | N97: ○
G98: 95 | H98: 95 | I98: 1 | J98: 0.3512676056 | K98: 0.9 | L98: 0.3161408451 | M98: 0.3274647887 | N98: ○
G99: 96 | H99: 96 | I99: 1 | J99: 0.3512676056 | K99: 0.9 | L99: 0.3161408451 | M99: 0.3274647887 | N99: ○
G100: 97 | H100: 97 | I100: 1 | J100: 0.3512676056 | K100: 0.9 | L100: 0.3161408451 | M100: 0.3274647887 | N100: ○
G101: 98 | H101: 98 | I101: 1 | J101: 0.3512676056 | K101: 0.9 | L101: 0.3161408451 | M101: 0.3274647887 | N101: ○
G102: 99 | H102: 99 | I102: 1 | J102: 0.3512676056 | K102: 0.9 | L102: 0.3161408451 | M102: 0.3274647887 | N102: ○
G103: 100 | H103: 100 | I103: 1 | J103: 0.3512676056 | K103: 0.9 | L103: 0.3161408451 | M103: 0.3274647887 | N103: ○
G104: 101 | H104: 101 | I104: 1 | J104: 0.3512676056 | K104: 0.9 | L104: 0.3161408451 | M104: 0.3274647887 | N104: ○
G105: 102 | H105: 102 | I105: 1 | J105: 0.3512676056 | K105: 0.9 | L105: 0.3161408451 | M105: 0.3274647887 | N105: ○
G106: 103 | H106: 103 | I106: 1 | J106: 0.3512676056 | K106: 0.9 | L106: 0.3161408451 | M106: 0.3274647887 | N106: ○
G107: 104 | H107: 104 | I107: 1 | J107: 0.3512676056 | K107: 0.9 | L107: 0.3161408451 | M107: 0.3274647887 | N107: ○
G108: 105 | H108: 105 | I108: 1 | J108: 0.3512676056 | K108: 0.9 | L108: 0.3161408451 | M108: 0.3274647887 | N108: ○
G109: 106 | H109: 106 | I109: 1 | J109: 0.3512676056 | K109: 0.9 | L109: 0.3161408451 | M109: 0.3274647887 | N109: ○
G110: 107 | H110: 107 | I110: 1 | J110: 0.3512676056 | K110: 0.9 | L110: 0.3161408451 | M110: 0.3274647887 | N110: ○
G111: 108 | H111: 1 | I111: 2 | J111: 0.3512676056 | K111: 0.95 | L111: 0.3337042254 | M111: 0.3274647887 | N111: ○
G112: 109 | H112: 2 | I112: 2 | J112: 0.3512676056 | K112: 0.95 | L112: 0.3337042254 | M112: 0.3274647887 | N112: ○
G113: 110 | H113: 3 | I113: 2 | J113: 0.3512676056 | K113: 0.95 | L113: 0.3337042254 | M113: 0.3274647887 | N113: ○
G114: 111 | H114: 4 | I114: 2 | J114: 0.3512676056 | K114: 0.95 | L114: 0.3337042254 | M114: 0.3274647887 | N114: ○
G115: 112 | H115: 5 | I115: 2 | J115: 0.3512676056 | K115: 0.95 | L115: 0.3337042254 | M115: 0.3274647887 | N115: ○
G116: 113 | H116: 6 | I116: 2 | J116: 0.3512676056 | K116: 0.95 | L116: 0.3337042254 | M116: 0.3274647887 | N116: ○
G117: 114 | H117: 7 | I117: 2 | J117: 0.3512676056 | K117: 0.95 | L117: 0.3337042254 | M117: 0.3274647887 | N117: ○
G118: 115 | H118: 8 | I118: 2 | J118: 0.3512676056 | K118: 0.95 | L118: 0.3337042254 | M118: 0.3274647887 | N118: ○
G119: 116 | H119: 9 | I119: 2 | J119: 0.3512676056 | K119: 0.95 | L119: 0.3337042254 | M119: 0.3274647887 | N119: ○
G120: 117 | H120: 10 | I120: 2 | J120: 0.3512676056 | K120: 0.95 | L120: 0.3337042254 | M120: 0.3274647887 | N120: ○
G121: 118 | H121: 11 | I121: 2 | J121: 0.3512676056 | K121: 0.95 | L121: 0.3337042254 | M121: 0.3274647887 | N121: ○
G122: 119 | H122: 12 | I122: 2 | J122: 0.3512676056 | K122: 0.95 | L122: 0.3337042254 | M122: 0.3274647887 | N122: ○
G123: 120 | H123: 13 | I123: 2 | J123: 0.3512676056 | K123: 0.95 | L123: 0.3337042254 | M123: 0.3274647887 | N123: ○
G124: 121 | H124: 14 | I124: 2 | J124: 0.3512676056 | K124: 0.95 | L124: 0.3337042254 | M124: 0.3274647887 | N124: ○
G125: 122 | H125: 15 | I125: 2 | J125: 0.3512676056 | K125: 0.95 | L125: 0.3337042254 | M125: 0.3274647887 | N125: ○
G126: 123 | H126: 16 | I126: 2 | J126: 0.3512676056 | K126: 0.95 | L126: 0.3337042254 | M126: 0.3274647887 | N126: ○
G127: 124 | H127: 17 | I127: 2 | J127: 0.3512676056 | K127: 0.95 | L127: 0.3337042254 | M127: 0.3274647887 | N127: ○
G128: 125 | H128: 18 | I128: 2 | J128: 0.3512676056 | K128: 0.95 | L128: 0.3337042254 | M128: 0.3274647887 | N128: ○
G129: 126 | H129: 19 | I129: 2 | J129: 0.3512676056 | K129: 0.95 | L129: 0.3337042254 | M129: 0.3274647887 | N129: ○
G130: 127 | H130: 20 | I130: 2 | J130: 0.3512676056 | K130: 0.95 | L130: 0.3337042254 | M130: 0.3274647887 | N130: ○
G131: 128 | H131: 21 | I131: 2 | J131: 0.3512676056 | K131: 0.95 | L131: 0.3337042254 | M131: 0.3274647887 | N131: ○
G132: 129 | H132: 22 | I132: 2 | J132: 0.3512676056 | K132: 0.95 | L132: 0.3337042254 | M132: 0.3274647887 | N132: ○
G133: 130 | H133: 23 | I133: =IF(H133=1,I132+1,I132) -> 2 | J133: =$E$3/$G$3 -> 0.3512676056 | K133: =HLOOKUP(I133,$P$4:$S$6,3,FALSE) -> 0.95 | L133: =J133*K133 -> 0.3337042254 | M133: =($D$7-$D$23)/$G$3 -> 0.3274647887 | N133: ○
G134: 131 | H134: =IF(H133=ROUNDUP($G$3*$H$3,0),1,H133+1) -> 24 | I134: 2 | J134: 0.3512676056 | K134: 0.95 | L134: 0.3337042254 | M134: 0.3274647887 | N134: ○
G135: 132 | H135: 25 | I135: 2 | J135: 0.3512676056 | K135: 0.95 | L135: 0.3337042254 | M135: 0.3274647887 | N135: ○
G136: 133 | H136: 26 | I136: 2 | J136: 0.3512676056 | K136: 0.95 | L136: 0.3337042254 | M136: 0.3274647887 | N136: ○
G137: 134 | H137: 27 | I137: 2 | J137: 0.3512676056 | K137: 0.95 | L137: 0.3337042254 | M137: 0.3274647887 | N137: ○
G138: 135 | H138: 28 | I138: 2 | J138: 0.3512676056 | K138: 0.95 | L138: 0.3337042254 | M138: 0.3274647887 | N138: ○
G139: 136 | H139: 29 | I139: 2 | J139: 0.3512676056 | K139: 0.95 | L139: 0.3337042254 | M139: 0.3274647887 | N139: ○
G140: 137 | H140: 30 | I140: 2 | J140: 0.3512676056 | K140: 0.95 | L140: 0.3337042254 | M140: 0.3274647887 | N140: ○
G141: 138 | H141: 31 | I141: 2 | J141: 0.3512676056 | K141: 0.95 | L141: 0.3337042254 | M141: 0.3274647887 | N141: ○
G142: 139 | H142: 32 | I142: 2 | J142: 0.3512676056 | K142: 0.95 | L142: 0.3337042254 | M142: 0.3274647887 | N142: ○
G143: 140 | H143: 33 | I143: 2 | J143: 0.3512676056 | K143: 0.95 | L143: 0.3337042254 | M143: 0.3274647887 | N143: ○
G144: 141 | H144: 34 | I144: 2 | J144: 0.3512676056 | K144: 0.95 | L144: 0.3337042254 | M144: 0.3274647887 | N144: ○
G145: 142 | H145: 35 | I145: 2 | J145: 0.3512676056 | K145: 0.95 | L145: 0.3337042254 | M145: 0.3274647887 | N145: ○
G146: 143 | H146: 36 | I146: 2 | J146: 0.3512676056 | K146: 0.95 | L146: 0.3337042254 | M146: 0.3274647887 | N146: ○
G147: 144 | H147: 37 | I147: 2 | J147: 0.3512676056 | K147: 0.95 | L147: 0.3337042254 | M147: 0.3274647887 | N147: ○
G148: 145 | H148: 38 | I148: 2 | J148: 0.3512676056 | K148: 0.95 | L148: 0.3337042254 | M148: 0.3274647887 | N148: ○
G149: 146 | H149: 39 | I149: 2 | J149: 0.3512676056 | K149: 0.95 | L149: 0.3337042254 | M149: 0.3274647887 | N149: ○
G150: 147 | H150: 40 | I150: 2 | J150: 0.3512676056 | K150: 0.95 | L150: 0.3337042254 | M150: 0.3274647887 | N150: ○
G151: 148 | H151: 41 | I151: 2 | J151: 0.3512676056 | K151: 0.95 | L151: 0.3337042254 | M151: 0.3274647887 | N151: ○
G152: 149 | H152: 42 | I152: 2 | J152: 0.3512676056 | K152: 0.95 | L152: 0.3337042254 | M152: 0.3274647887 | N152: ○
G153: 150 | H153: 43 | I153: 2 | J153: 0.3512676056 | K153: 0.95 | L153: 0.3337042254 | M153: 0.3274647887 | N153: ○
G154: 151 | H154: 44 | I154: 2 | J154: 0.3512676056 | K154: 0.95 | L154: 0.3337042254 | M154: 0.3274647887 | N154: ○
G155: 152 | H155: 45 | I155: 2 | J155: 0.3512676056 | K155: 0.95 | L155: 0.3337042254 | M155: 0.3274647887 | N155: ○
G156: 153 | H156: 46 | I156: 2 | J156: 0.3512676056 | K156: 0.95 | L156: 0.3337042254 | M156: 0.3274647887 | N156: ○
G157: 154 | H157: 47 | I157: 2 | J157: 0.3512676056 | K157: 0.95 | L157: 0.3337042254 | M157: 0.3274647887 | N157: ○
G158: 155 | H158: 48 | I158: 2 | J158: 0.3512676056 | K158: 0.95 | L158: 0.3337042254 | M158: 0.3274647887 | N158: ○
G159: 156 | H159: 49 | I159: 2 | J159: 0.3512676056 | K159: 0.95 | L159: 0.3337042254 | M159: 0.3274647887 | N159: ○
G160: 157 | H160: 50 | I160: 2 | J160: 0.3512676056 | K160: 0.95 | L160: 0.3337042254 | M160: 0.3274647887 | N160: ○
G161: 158 | H161: 51 | I161: 2 | J161: 0.3512676056 | K161: 0.95 | L161: 0.3337042254 | M161: 0.3274647887 | N161: ○
G162: 159 | H162: 52 | I162: 2 | J162: 0.3512676056 | K162: 0.95 | L162: 0.3337042254 | M162: 0.3274647887 | N162: ○
G163: 160 | H163: 53 | I163: 2 | J163: 0.3512676056 | K163: 0.95 | L163: 0.3337042254 | M163: 0.3274647887 | N163: ○
G164: 161 | H164: 54 | I164: 2 | J164: 0.3512676056 | K164: 0.95 | L164: 0.3337042254 | M164: 0.3274647887 | N164: ○
G165: 162 | H165: 55 | I165: 2 | J165: 0.3512676056 | K165: 0.95 | L165: 0.3337042254 | M165: 0.3274647887 | N165: ○
G166: 163 | H166: 56 | I166: 2 | J166: 0.3512676056 | K166: 0.95 | L166: 0.3337042254 | M166: 0.3274647887 | N166: ○
G167: 164 | H167: 57 | I167: 2 | J167: 0.3512676056 | K167: 0.95 | L167: 0.3337042254 | M167: 0.3274647887 | N167: ○
G168: 165 | H168: 58 | I168: 2 | J168: 0.3512676056 | K168: 0.95 | L168: 0.3337042254 | M168: 0.3274647887 | N168: ○
G169: 166 | H169: 59 | I169: 2 | J169: 0.3512676056 | K169: 0.95 | L169: 0.3337042254 | M169: 0.3274647887 | N169: ○
G170: 167 | H170: 60 | I170: 2 | J170: 0.3512676056 | K170: 0.95 | L170: 0.3337042254 | M170: 0.3274647887 | N170: ○
G171: 168 | H171: 61 | I171: 2 | J171: 0.3512676056 | K171: 0.95 | L171: 0.3337042254 | M171: 0.3274647887 | N171: ○
G172: 169 | H172: 62 | I172: 2 | J172: 0.3512676056 | K172: 0.95 | L172: 0.3337042254 | M172: 0.3274647887 | N172: ○
G173: 170 | H173: 63 | I173: 2 | J173: 0.3512676056 | K173: 0.95 | L173: 0.3337042254 | M173: 0.3274647887 | N173: ○
G174: 171 | H174: 64 | I174: 2 | J174: 0.3512676056 | K174: 0.95 | L174: 0.3337042254 | M174: 0.3274647887 | N174: ○
G175: 172 | H175: 65 | I175: 2 | J175: 0.3512676056 | K175: 0.95 | L175: 0.3337042254 | M175: 0.3274647887 | N175: ○
G176: 173 | H176: 66 | I176: 2 | J176: 0.3512676056 | K176: 0.95 | L176: 0.3337042254 | M176: 0.3274647887 | N176: ○
G177: 174 | H177: 67 | I177: 2 | J177: 0.3512676056 | K177: 0.95 | L177: 0.3337042254 | M177: 0.3274647887 | N177: ○
G178: 175 | H178: 68 | I178: 2 | J178: 0.3512676056 | K178: 0.95 | L178: 0.3337042254 | M178: 0.3274647887 | N178: ○
G179: 176 | H179: 69 | I179: 2 | J179: 0.3512676056 | K179: 0.95 | L179: 0.3337042254 | M179: 0.3274647887 | N179: ○
G180: 177 | H180: 70 | I180: 2 | J180: 0.3512676056 | K180: 0.95 | L180: 0.3337042254 | M180: 0.3274647887 | N180: ○
G181: 178 | H181: 71 | I181: 2 | J181: 0.3512676056 | K181: 0.95 | L181: 0.3337042254 | M181: 0.3274647887 | N181: ○
G182: 179 | H182: 72 | I182: 2 | J182: 0.3512676056 | K182: 0.95 | L182: 0.3337042254 | M182: 0.3274647887 | N182: ○
G183: 180 | H183: 73 | I183: 2 | J183: 0.3512676056 | K183: 0.95 | L183: 0.3337042254 | M183: 0.3274647887 | N183: ○
G184: 181 | H184: 74 | I184: 2 | J184: 0.3512676056 | K184: 0.95 | L184: 0.3337042254 | M184: 0.3274647887 | N184: ○
G185: 182 | H185: 75 | I185: 2 | J185: 0.3512676056 | K185: 0.95 | L185: 0.3337042254 | M185: 0.3274647887 | N185: ○
G186: 183 | H186: 76 | I186: 2 | J186: 0.3512676056 | K186: 0.95 | L186: 0.3337042254 | M186: 0.3274647887 | N186: ○
G187: 184 | H187: 77 | I187: 2 | J187: 0.3512676056 | K187: 0.95 | L187: 0.3337042254 | M187: 0.3274647887 | N187: ○
G188: 185 | H188: 78 | I188: 2 | J188: 0.3512676056 | K188: 0.95 | L188: 0.3337042254 | M188: 0.3274647887 | N188: ○
G189: 186 | H189: 79 | I189: 2 | J189: 0.3512676056 | K189: 0.95 | L189: 0.3337042254 | M189: 0.3274647887 | N189: ○
G190: 187 | H190: 80 | I190: 2 | J190: 0.3512676056 | K190: 0.95 | L190: 0.3337042254 | M190: 0.3274647887 | N190: ○
G191: 188 | H191: 81 | I191: 2 | J191: 0.3512676056 | K191: 0.95 | L191: 0.3337042254 | M191: 0.3274647887 | N191: ○
G192: 189 | H192: 82 | I192: 2 | J192: 0.3512676056 | K192: 0.95 | L192: 0.3337042254 | M192: 0.3274647887 | N192: ○
G193: 190 | H193: 83 | I193: 2 | J193: 0.3512676056 | K193: 0.95 | L193: 0.3337042254 | M193: 0.3274647887 | N193: ○
G194: 191 | H194: 84 | I194: 2 | J194: 0.3512676056 | K194: 0.95 | L194: 0.3337042254 | M194: 0.3274647887 | N194: ○
G195: 192 | H195: 85 | I195: 2 | J195: 0.3512676056 | K195: 0.95 | L195: 0.3337042254 | M195: 0.3274647887 | N195: ○
G196: 193 | H196: 86 | I196: 2 | J196: 0.3512676056 | K196: 0.95 | L196: 0.3337042254 | M196: 0.3274647887 | N196: ○
G197: 194 | H197: 87 | I197: =IF(H197=1,I196+1,I196) -> 2 | J197: =$E$3/$G$3 -> 0.3512676056 | K197: =HLOOKUP(I197,$P$4:$S$6,3,FALSE) -> 0.95 | L197: =J197*K197 -> 0.3337042254 | M197: =($D$7-$D$23)/$G$3 -> 0.3274647887 | N197: ○
G198: 195 | H198: =IF(H197=ROUNDUP($G$3*$H$3,0),1,H197+1) -> 88 | I198: 2 | J198: 0.3512676056 | K198: 0.95 | L198: 0.3337042254 | M198: 0.3274647887 | N198: ○
G199: 196 | H199: 89 | I199: 2 | J199: 0.3512676056 | K199: 0.95 | L199: 0.3337042254 | M199: 0.3274647887 | N199: ○
G200: 197 | H200: 90 | I200: 2 | J200: 0.3512676056 | K200: 0.95 | L200: 0.3337042254 | M200: 0.3274647887 | N200: ○
... 158 more rows

Sheet 素材 (hidden)
